Cogmind - Beta 10.2 *** ADVENTURER MODE // 2021.09.11 @ 21:41:57 Player: Terra Result: Destroyed by S-10 Pest with Light Assault Rifle Performance ------------- Evolutions (0) 0 Regions Visited (4) 800 Robots Destroyed (26) 130 Value Destroyed (586) 586 Prototype IDs (0) 0 Alien Tech Used (0) 0 Bonus (0) 0 TOTAL SCORE: 1516 Bonus ------- None Cogmind --------- Core Integrity 0/250 Matter 170/300 Energy 125/125 System Corruption 0% Temperature Cool (95) Movement Hovering (176) Ox2 Location -9/Mines Parts ------- > --- POWER (1) -------- Light Ion Engine > --- PROPULSION (2) --- Improved Hover Unit Improved Hover Unit > --- UTILITY (2) ------ High-capacity Storage Unit Light Armor Plating > --- WEAPON (2) ------- Particle Gun Improved Light Cannon > --- INVENTORY (12) --- Improved Ion Engine Hover Unit Hover Unit Heat Sink Targeting Computer Targeting Computer Assault Rifle Heavy Assault Rifle Grenade Launcher Datajack Peak State ------------ > --- POWER ------------ Light Ion Engine > --- PROPULSION ------- Improved Hover Unit Improved Hover Unit > --- UTILITY ---------- Improved Heat Sink Small Storage Unit > --- WEAPON ----------- Improved Light Cannon Improved Light Cannon > --- INVENTORY -------- Light Nuclear Core Wheel Compact Wheel Improved Hover Unit Heat Sink Particle Gun [Rating: 14] Favorites ----------- Power Light Ion Engine Engine Light Ion Engine Power Core Light Nuclear Core Propulsion Improved Hover Unit Wheel Compact Wheel Hover Unit Improved Hover Unit Utility High-capacity Storage Unit Device Improved Heat Sink Storage High-capacity Storage Unit Protection Weapon Shielding Weapon Improved Light Cannon Energy Gun Particle Gun Ballistic Gun Light Assault Rifle Ballistic Cannon Improved Light Cannon Build | -11 -10 -10 -10 -9 ------- Run | Scr Mat Min Exi Min Slots Evolved . | . . . . . Power . | . . . . . Propulsion . | . . . . . Utility . | . . . . . Weapon . | . . . . . Parts Attached 25 | 6 13 6 . . Power 4 | 1 2 1 . . Engine 3 | 1 1 1 . . Core 1 | . 1 . . . Reactor . | . . . . . Propulsion 8 | 2 3 3 . . Treads . | . . . . . Leg . | . . . . . Wheel 3 | 2 1 . . . Hover 5 | . 2 3 . . Flight . | . . . . . Utility 6 | 1 4 1 . . Device 2 | . 2 . . . Storage 2 | 1 1 . . . Processor . | . . . . . Hackware . | . . . . . Protection 2 | . 1 1 . . Artifact . | . . . . . Weapon 7 | 2 4 1 . . Energy Gun 3 | 1 1 1 . . Energy Cannon . | . . . . . Ballistic Gun 1 | 1 . . . . Ballistic Cannon 3 | . 3 . . . Launcher . | . . . . . Special Weapon . | . . . . . Impact Weapon . | . . . . . Slashing Weapon . | . . . . . Piercing Weapon . | . . . . . Special Melee Weapon . | . . . . . Unidentified Prototypes . | . . . . . Parts Lost 7 | . 4 3 . . Power 2 | . 1 1 . . Propulsion 3 | . 1 2 . . Utility 1 | . 1 . . . Weapon 1 | . 1 . . . Highest Loss Streak 4 | . 4 3 . . Average Slot Usage (%) 95 | . 95 93 100 100 Engine 11 | . 12 7 14 14 Core 1 | . 1 1 . . Wheel 4 | . 9 . . . Hover 22 | . 17 27 28 28 Device 1 | . 3 . . . Storage 14 | . 14 14 14 14 Protection 11 | . 7 14 14 14 Energy Gun 6 | . 4 4 14 14 Ballistic Gun 1 | . 3 . . . Ballistic Cannon 19 | . 19 23 14 14 Naked Turns . | . . . . . Heaviest Build 46 | 12 46 46 45 45 Greatest Support 32 | 26 32 16 16 16 Greatest Overweight (x) 2 | 2 2 2 2 2 Average Overweight (x) 1 | . . 2 2 2 Largest Inventory Capacity 12 | 6 12 12 12 12 Average Capacity 10 | 4 9 12 12 12 Most Carried 10 | 4 9 10 10 10 Average Carried 6 | 2 5 6 10 10 Final Capacity 12 | 6 12 12 12 12 Final Carried 10 | 2 7 10 10 10 Class Distribution -------------------- 100% | Mutant Dominant Class ---------------- Mutant | -10/Materials Mutant | -10/Mines Mutant | -10/Exiles Mutant | -9/Mines Resources | -11 -10 -10 -10 -9 ----------- Run | Scr Mat Min Exi Min Matter Collected 584 | 117 264 203 . . Remotely 10 | . 10 . . . Salvage Created 766 | . 552 184 . 30 Parts 52 | . 30 15 . 7 Haulers Intercepted . | . . . . . Recyclers Shooed 2 | . 1 1 . . Parts Field Recycled . | . . . . . Retrieved Matter . | . . . . . Parts Self-Destructed . | . . . . . Prevented . | . . . . . Kills | -11 -10 -10 -10 -9 ------- Run | Scr Mat Min Exi Min Combat Hostiles Destroyed 20 | . 11 6 . 3 Guns 5 | . 2 . . 3 Cannons 15 | . 9 6 . . Classes Destroyed 10 | . 5 5 . . Worker 2 | . 2 . . . Builder 1 | . . 1 . . Tunneler 2 | . . 2 . . Recycler 3 | . 2 1 . . Watcher 1 | . 1 . . . Swarmer 6 | . 3 . . 3 Grunt 8 | . 8 . . . Sentry 2 | . . 2 . . Demolisher 1 | . . 1 . . Assembled 3 | . . 3 . . Best Kill Streak 7 | . 7 5 . 2 Combat Bots Only 7 | . 7 2 . 2 Max Kills in Single Turn 2 | . 2 1 . 1 Gunslinging . | . . . . . Exploded . | . . . . . Melee . | . . . . . Uniques/NPCs Destroyed . | . . . . . Combat | -11 -10 -10 -10 -9 -------- Run | Scr Mat Min Exi Min Damage Taken 1152 | . 704 365 . 83 Core 252 | . 129 101 . 22 Absorbed by Shields . | . . . . . Core Remaining (%) 100 | 100 . . . . Volleys Fired 59 | . 37 17 . 5 Largest 2 | . 2 2 . 2 Hottest 104 | . 79 78 . 104 Shots Fired 114 | . 70 34 . 10 Gun 39 | . 34 . . 5 Cannon 75 | . 36 34 . 5 Launcher . | . . . . . Special . | . . . . . Kinetic 92 | . 53 34 . 5 Thermal 11 | . 6 . . 5 Explosive . | . . . . . Electromagnetic 11 | . 11 . . . Robot Hit Streak 16 | . 16 9 . 4 Robot Miss Streak 3 | . 3 3 . 1 Penetration Max . | . . . . . Secondary Targets 1 | . 1 . . . Max Gunslinging Chain 1 | . 1 . . . Shots Hit Robots 67 | . 41 20 . 6 Core Hits 37 | . 23 11 . 3 Critical Hits . | . . . . . Critical Kills . | . . . . . Critical Parts Destroyed . | . . . . . Melee Attacks . | . . . . . Impact . | . . . . . Slashing . | . . . . . Piercing . | . . . . . Sneak Attacks . | . . . . . Combat Hostiles . | . . . . . Follow-up Attacks . | . . . . . Damage Inflicted 1246 | . 733 416 . 97 Guns 316 | . 237 . . 79 Cannons 879 | . 445 416 . 18 Explosions . | . . . . . Melee . | . . . . . Ramming 51 | . 51 . . . Kinetic 961 | . 527 416 . 18 Thermal 91 | . 12 . . 79 Explosive . | . . . . . Electromagnetic 143 | . 143 . . . Impact . | . . . . . Slashing . | . . . . . Piercing . | . . . . . Highest Corruption . | . . . . . Average Corruption . | . . . . . Corruption Purged . | . . . . . Overload Shots . | . . . . . Overflow Damage 17 | . 17 . . . Projectiles 17 | . 17 . . . Explosions . | . . . . . Melee . | . . . . . Knockbacks 11 | . 7 3 . 1 Impact 1 | . 1 . . . Kinetic 9 | . 5 3 . 1 Secondary 1 | . 1 . . . Self-Inflicted Damage 24 | . 24 . . . Shots . | . . . . . Rammed 6 | . 6 . . . Targets Rammed 6 | . 6 . . . Kicked . | . . . . . Crushed . | . . . . . Highest Temperature 171 | . 126 92 . 171 Average Temperature 52 | . 53 40 . 81 Received Heat Transfer 382 | . 255 127 . . Siege Activations . | . . . . . Robots Corrupted . | . . . . . Combat Hostiles . | . . . . . Parts Fried 2 | . 2 . . . Impact Corruptions 1 | . 1 . . . Robots Melted . | . . . . . Combat Hostiles . | . . . . . Parts Melted . | . . . . . Heat Transferred 210 | . 25 . . 185 Parts Sabotaged . | . . . . . Parts Stolen . | . . . . . Parts Stripped . | . . . . . Power Chain Reactions . | . . . . . Missiles Intercepted . | . . . . . Alert | -11 -10 -10 -10 -9 ------- Run | Scr Mat Min Exi Min Peak Influence 280 | . 280 115 . 94 Initial 35 | . . 35 . . Average 96 | . 135 71 . 54 Maximum Alert Level 1 | . 1 . . . Low Security (%) 82 | 100 62 100 . 100 Level 1 17 | . 37 . . . Level 2 . | . . . . . Level 3 . | . . . . . Level 4 . | . . . . . Level 5 . | . . . . . High Security . | . . . . . Max Security . | . . . . . Squads Dispatched 1 | . 1 . . . Investigation 1 | . 1 . . . Extermination . | . . . . . Reinforcement . | . . . . . Assault . | . . . . . Garrison . | . . . . . Intercept . | . . . . . Construction Impeded . | . . . . . Haulers Reinforced . | . . . . . Stealth | -11 -10 -10 -10 -9 --------- Run | Scr Mat Min Exi Min Distress Signals 2 | . 2 . . . Communications Jammed . | . . . . . Distress Signals . | . . . . . Times Spotted 47 | . 19 21 . 7 Peak Tracking Total 18 | . 8 18 . 4 Tactical Retreats 1 | . . . . 1 Traps | -11 -10 -10 -10 -9 ------- Run | Scr Mat Min Exi Min Traps Triggered 2 | . 2 . . . Indirectly . | . . . . . Trap Hack Attempts . | . . . . . Triggered . | . . . . . Disarmed . | . . . . . Reprogrammed . | . . . . . Reused . | . . . . . Traps Extracted . | . . . . . Installed . | . . . . . Triggered . | . . . . . Machines | -11 -10 -10 -10 -9 ---------- Run | Scr Mat Min Exi Min Machines Disabled 4 | . 3 1 . . Max in Single Turn 1 | . 1 1 . . Machines Sabotaged . | . . . . . Garrisons Compromised . | . . . . . Overloaded Fab Kills . | . . . . . Fab Network Shutdowns . | . . . . . Hacking | -11 -10 -10 -10 -9 --------- Run | Scr Mat Min Exi Min Machines Accessed 6 | . 5 . . 1 Terminals 5 | . 4 . . 1 Fabricators . | . . . . . Repair Stations . | . . . . . Recycling Units 1 | . 1 . . . Scanalyzers . | . . . . . Garrison Access . | . . . . . Total Hacks 19 | . 14 . . 5 Successful 14 | . 10 . . 4 Failed 5 | . 4 . . 1 Catastrophic . | . . . . . Database Lockouts . | . . . . . Manual 19 | . 14 . . 5 Terminals 18 | . 13 . . 5 Fabricators . | . . . . . Repair Stations . | . . . . . Recycling Units 1 | . 1 . . . Scanalyzers . | . . . . . Garrison Access . | . . . . . Terminal Hacks . | . . . . . Fabricator Hacks . | . . . . . Repair Station Hacks . | . . . . . Recycling Unit Hacks . | . . . . . Scanalyzer . | . . . . . Garrison Access Hacks . | . . . . . Unauthorized Hacks 14 | . 10 . . 4 Terminals 13 | . 9 . . 4 Track 4 | . 3 . . 1 Assimilate 2 | . 1 . . 1 Botnet 5 | . 4 . . 1 Operators 2 | . 1 . . 1 Fabricators . | . . . . . Repair Stations . | . . . . . Recycling Units 1 | . 1 . . . Recyclers 1 | . 1 . . . Scanalyzers . | . . . . . Garrison Access . | . . . . . Data Cores Recovered . | . . . . . Used . | . . . . . Hacking Detections 3 | . 3 . . . Full Trace Events 2 | . 2 . . . Feedback Events . | . . . . . Feedback Blocked . | . . . . . Robot Schematics Acquired . | . . . . . Robots Built . | . . . . . Matter . | . . . . . Time . | . . . . . Total Robot Build Rating . | . . . . . Part Schematics Acquired . | . . . . . Parts Built . | . . . . . Matter . | . . . . . Time . | . . . . . Total Part Build Rating . | . . . . . Parts Repaired . | . . . . . Time . | . . . . . Parts Recycled . | . . . . . Recycled Matter . | . . . . . Retrieved Matter . | . . . . . Retrieved Components . | . . . . . Parts Scanalyzed . | . . . . . Part Schematics Acquired . | . . . . . Parts Damaged . | . . . . . Bothacking | -11 -10 -10 -10 -9 ------------ Run | Scr Mat Min Exi Min Used RIF Installer . | . . . . . Robots Hacked . | . . . . . Non-combat . | . . . . . Combat . | . . . . . Robot Hacks Applied . | . . . . . Relay Couplers Released . | . . . . . Robots Rewired . | . . . . . Allies Hacked . | . . . . . Hacks Repelled . | . . . . . Allies | -11 -10 -10 -10 -9 -------- Run | Scr Mat Min Exi Min Total Allies . | . . . . . Largest Group . | . . . . . Highest-Rated Group . | . . . . . Highest-Rated Ally . | . . . . . Total Orders . | . . . . . Ally Attacks . | . . . . . Total Damage . | . . . . . Kills . | . . . . . Allies Corrupted . | . . . . . Allies Melted . | . . . . . Intel | -11 -10 -10 -10 -9 ------- Run | Scr Mat Min Exi Min Robot Analysis Total . | . . . . . Derelict Logs Recovered 1 | . . 1 . . Drone Launches . | . . . . . Drone Recoveries . | . . . . . Exploration | -11 -10 -10 -10 -9 ------------- Run | Scr Mat Min Exi Min Turns Passed 1264 | 41 571 359 53 240 Spaces Moved 727 | 37 364 167 31 128 Core 18 | 18 . . . . Treads . | . . . . . Legs . | . . . . . Wheels 148 | 19 129 . . . Hover 561 | . 235 167 31 128 Flight . | . . . . . Fastest Speed 50 | 50 56 176 176 176 Average Speed 141 | 78 116 176 176 176 Slowest Speed 176 | 150 176 176 176 176 Overloaded Moves . | . . . . . Propulsion Burnouts . | . . . . . Robots Hopped . | . . . . . Cave-ins Triggered . | . . . . . Exploration Rate (%) 31 | 4 64 32 8 51 Regions Visited 4 Branch Regions 3 Pre-discovered Areas . | . . . . . Known Exits Taken . | . . . . . Unknown Exits Taken 4 | 1 1 1 1 . Scrap Searched 1 | . . 1 . . Spaces Dug . | . . . . . Terrain Destroyed 13 | . 3 6 . 4 Melee . | . . . . . Projectile 13 | . 3 6 . 4 AOE . | . . . . . Terrain Rammed . | . . . . . Walls Destroyed . | . . . . . Machines Disabled . | . . . . . Actions | -11 -10 -10 -10 -9 --------- Run | Scr Mat Min Exi Min Total 854 | 47 445 199 30 133 Wait . | . . . . . Move 723 | 36 363 166 30 128 Hop . | . . . . . Pick Up 29 | 5 16 8 . . Fast Attach 6 | 3 3 . . . Attach 16 | 3 8 5 . . Detach . | . . . . . Swap 3 | . 2 1 . . Drop 12 | . 10 2 . . Fire 59 | . 37 17 . 5 Melee . | . . . . . Ram 6 | . 6 . . . Kick . | . . . . . Crush . | . . . . . Escape Stasis . | . . . . . Rewire . | . . . . . Trap . | . . . . . Miscellaneous . | . . . . . Route ------- -11/Scrapyard -10/Materials (discovered 4 exits: [*Mat x3] / [*Min]) -10/Mines -10/Exiles -9/Mines History --------- Turn | Location | Event 9 | -11/Scrapyard | Discovered new exit (range 15) 42 | -11/Scrapyard | Entered Materials 77 | -10/Materials | Discovered new exit (range 14) 158 | -10/Materials | Discovered new exit (range 11) 251 | -10/Materials | Destroyed 7 combat bots 259 | -10/Materials | Lost 4 parts (1p1n1u1w) 313 | -10/Materials | Build established: Mutant 314 | -10/Materials | Discovered new exit (range 10) 355 | -10/Materials | Core integrity fell below 50% 579 | -10/Materials | Discovered new exit (range 15) 613 | -10/Materials | Entered Mines 614 | -10/Mines | Assembled infested the area 615 | -10/Mines | Met a Derelict bent on vengeance 639 | -10/Mines | Core integrity fell below 20% 674 | -10/Mines | Lost 3 parts (1p2n) 939 | -10/Mines | Learned Materials stockpile data 965 | -10/Mines | Deemed a non-threat by the Exiles lab entrance 965 | -10/Mines | Discovered new exit (range 5) 972 | -10/Mines | Entered Exiles 1002 | -10/Exiles | Discovered new exit (range 14) 1025 | -10/Exiles | Entered Mines 1265 | -9/Mines | Destroyed by S-10 Pest with Light Assault Rifle Last Messages --------------- Testing... Terminal linked with 0 systems. Awaiting botnet instructions. >>Trojan(Assimilate) Trojan loaded successfully. Testing... System interface override in place. >>Trojan(Operators) Trojan loaded successfully. Testing... Operator tracking enabled and active. >>Trojan(Track) Trojan loaded successfully. Testing... Tracking enabled and active. K-01 Serf collects debris. S-10 Pest destroyed. K-01 Serf collects debris. S-10 Pest knocked back. S-10 Pest destroyed. Map ----- +----------------------------------------------------+ | ?????????????????????????????? | | ?????????????????????????????? | | ?????????????????????????????? | | ?????????????????????????????? | | ?????????????????????????????? | | ?????????????????????????????? | | ?????????????????????????????? | | ?????????????????????????????? | | ?????????????????????????????? | | ?????????????????????????????? | | ?????????????????????????????? | | ?????????????????????????????? | | ?????????????????????????????? | | ?????????????????????????????? | | ?????????????????????????????? | | ?????????????????????????????? | | ?????????????????????????????? | | ?????????????####????????????? | | ?????????????? ???????????? | | ???????????????#; #???####???? | | ????????????????#%=#### ##??? | | ?????????????????= s #??? | | ??????????????????? s #??? | | ????????????????????# #??? | | ?????????????????????# #??? | | ??????????????????????# @#??? | | ??????????????????????# #??? | | ??????????????????????# ##?? | | ??????????????????????## ##? | | ???????????????????????# #? | | ???????????????????????# #? | | ???????????????????????# ##? | | ???????????????????????# #?? | | ???????????????????????# #?? | | ??????????????????????## #?? | | ??????????????????????# #?? | | ??????????????????????# #?? | | ??????????????????????## #?? | | #?????????????????????## #?? | | #?????????????????????# #?? | | #????????????????????## #?? | | #???????????????????## #?? | | ##??####?????######## ##?? | | #### ####### ##??? | | ###???? | | ####?????? | | ####### ##????????? | | ##?????# #?????????? | | ##??????# #?????????? | | #???????# #?????????? | +----------------------------------------------------+ Best States ------------- Heat Dissipation 39 Energy Generation 14 Energy Capacity 250 Matter Stores 300 Matter Capacity 300 Sight Range 16 Terrain Scan Density 10 Armor Coverage 150 Resistance: KI 20 Resistance: TH 20 Resistance: EX 20 Resistance: EM 20 Resistance: I 20 Resistance: S 20 Resistance: P 20 Weapon Shielding 33 Evasion (%) 53 Offensive Hacking 10 Item Schematics ----------------- None Robot Schematics ------------------ None Fabricated ------------ Nothing Alien Tech Used ----------------- None Achievements -------------- I Survived The Infestation Challenges ------------ None Game ------ Seed SensorSmartbombCore Manual? 0 Play Time 00:16:12 Cumulative 5.6 hours Start 2021.09.11 @ 21:26:16 End 2021.09.11 @ 21:41:57 Sessions 1 Manual Loads 0 Difficulty Adventurer Special Mode None Game No. 5 Rogue 0 Adventurer 5 Explorer 0 Win Type - Total 0 Types 0/0/0/0/0/0/0/0/0 Lore% 3 Gallery% 16 Achievement% 14 Wizard Run 0 Options --------- ASCII 0 Keyboard 0 Movement Mouse Keybinds 0 Fullscreen 1 Font 18/Smallcaps Map View 76x50 Tactical HUD 0 Map Filters NONE Filters NONE Steam 1 RUN: daccfe4b-3d6d-432d-998c-0aee69e725c6